fUSD/lending_fUSD_20250404
["ID","MTS","AMOUNT","RATE_DAILY","PERIOD"]
[357134237,1743779242276,-151.0,0.00043453,2]
[357134238,1743779242297,-159.39,0.00044239,2]
[357134239,1743779242319,-1000.0,0.00045,120]
[357134240,1743779242340,-300.0,0.00046,120]
[357134241,1743779242361,-325.32419687,0.000474,2]
[357134242,1743779242385,-500.0,0.000474,120]
[357134243,1743779242582,-293.28,0.00047436,2]
[357134244,1743779242609,-150.0,0.00047456,7]
[357134245,1743779242633,-500.0,0.00047499,120]
[357134246,1743779242656,-155.49,0.00047507,2]
[357134247,1743779242683,-267.71684164,0.00047867,120]
[357134248,1743779242712,-1000.0,0.00047967,2]
[357134249,1743779242736,-500.0,0.0004799,120]
[357134250,1743779242759,-500.0,0.00048,120]
[357134251,1743779242786,-19181.97747245,0.0004808,2]
[357134252,1743779345126,-161.13,0.00038548,2]
[357134253,1743779367718,400.0,0.00046,120]
[357134256,1743779382321,400.0,0.00046,120]
[357134258,1743779406149,750.0,0.00046,120]
[357134284,1743779432425,-300.0,0.00047,30]
[357134286,1743779432435,-401.2330322,0.00047,120]
[357134292,1743779432481,-267.7669678,0.00047,120]
[357134294,1743779432491,-300.00000001,0.0004799,120]
[357134296,1743779432502,-500.0,0.00048,120]
[357134298,1743779432513,-150.0,0.00048048,2]
[357134300,1743779432523,-4269.36405527,0.0004808,2]
[357134314,1743779438407,-250.18106526,0.0004808,2]
[357134315,1743779438419,-198.47740702,0.0004808,2]
[357134316,1743779438428,-322.51,0.00048189,2]
[357134317,1743779438437,-205.27705997,0.00048255,2]
[357134318,1743779438449,-120.65294003,0.00048255,2]
[357134319,1743779438458,-500.0,0.00048315,120]
[357134320,1743779438467,-151.91,0.00048502,120]
[357134321,1743779438476,-500.0,0.00048505,120]
[357134322,1743779438485,-250.0,0.00048841,120]
[357134323,1743779438495,-381.204,0.00048841,84]
[357134324,1743779438504,-13212.1356,0.000489,2]
[357134325,1743779438513,-16910.6333,0.000489,2]
[357134326,1743779438521,-171.54913847,0.000489,28]
[357134327,1743779438535,-1000.0,0.00048983,9]
[357134328,1743779438545,-1113.2073739,0.00048984,4]
[357134329,1743779438554,-457.4651,0.00048986,20]
[357134330,1743779438563,-631.14,0.0004899,2]
[357134331,1743779438572,-187098.3368611,0.00049,90]
[357134332,1743779438583,-72901.6631389,0.00049,90]
[357134333,1743779438592,-500.0,0.00049,14]
[357134334,1743779438601,-500.0,0.00049135,120]
[357134335,1743779438613,-7918.45,0.0004917,14]
[357134336,1743779438622,-168.28161389,0.00049205,15]
[357134337,1743779438631,-157.280876,0.00049315,120]
[357134338,1743779438640,-500.0,0.00049315,120]
[357134339,1743779438650,-500.0,0.00049315,120]
[357134340,1743779438659,-500.0,0.00049315,120]
[357134341,1743779438668,-500.0,0.00049315,120]
[357134342,1743779438680,-500.0,0.00049315,120]
[357134343,1743779438692,-500.0,0.00049315,120]
[357134344,1743779438701,-500.0,0.00049315,120]
[357134345,1743779438711,-500.0,0.00049315,120]
[357134347,1743779438721,-500.0,0.00049315,120]
[357134349,1743779438731,-500.0,0.00049315,120]
[357134351,1743779438740,-500.0,0.00049315,120]
[357134353,1743779438750,-500.0,0.00049315,120]
[357134355,1743779438759,-500.0,0.00049315,120]
[357134357,1743779438769,-500.0,0.00049315,120]
[357134359,1743779438779,-500.0,0.00049315,120]
[357134361,1743779438788,-500.0,0.00049315,120]
[357134363,1743779438798,-500.0,0.00049315,120]
[357134365,1743779438807,-346.28036842,0.00049315,120]
[357134367,1743779438816,-500.0,0.00049315,120]
[357134369,1743779438826,-500.0,0.00049315,120]
[357134371,1743779438835,-500.0,0.00049315,120]
[357134373,1743779438844,-500.0,0.00049315,120]
[357134375,1743779438853,-500.0,0.00049315,120]
[357134378,1743779438866,-500.0,0.00049315,120]
[357134381,1743779438875,-500.0,0.00049315,120]
[357134383,1743779438884,-350.0,0.00049315,120]
[357134385,1743779438893,-500.0,0.00049315,2]
[357134387,1743779438902,-988.89,0.00049315,120]
[357134389,1743779438912,-500.0,0.00049315,2]
[357134391,1743779438921,-500.0,0.00049315,2]
[357134394,1743779438930,-500.0,0.00049315,2]
[357134396,1743779438940,-500.0,0.00049315,120]
[357134397,1743779438949,-500.0,0.00049315,120]
[357134399,1743779438958,-799.59,0.00049315,120]
[357134402,1743779438968,-500.0,0.00049315,120]
[357134403,1743779438977,-500.0,0.00049315,120]
[357134405,1743779438987,-500.0,0.00049315,120]
[357134407,1743779438995,-500.0,0.00049315,30]
[357134409,1743779439005,-500.0,0.00049315,120]
[357134411,1743779439014,-500.0,0.00049315,120]
[357134413,1743779439023,-500.0,0.00049315,120]
[357134415,1743779439032,-500.0,0.00049315,120]
[357134417,1743779439041,-500.0,0.00049315,120]
[357134419,1743779439051,-500.0,0.00049315,120]
[357134421,1743779439060,-500.0,0.00049315,120]
[357134423,1743779439069,-345.64470407,0.00049315,120]
[357134425,1743779439078,-500.0,0.00049315,120]
[357134427,1743779439088,-264.83196073,0.00049315,120]
[357134429,1743779439097,-500.0,0.00049315,120]
[357134431,1743779439109,-500.0,0.00049315,120]
[357134433,1743779439118,-500.0,0.00049315,120]
[357134435,1743779439128,-258.32510544,0.00049315,120]
[357134437,1743779439137,-500.0,0.00049315,120]
[357134439,1743779439146,-273.08290956,0.00049315,120]
[357134441,1743779439155,-500.0,0.00049315,120]
[357134443,1743779439164,-642.63,0.00049315,120]
[357134445,1743779439174,-500.0,0.00049315,120]
[357134447,1743779439183,-703.36,0.00049315,120]
[357134449,1743779439192,-500.0,0.00049315,120]
[357134451,1743779439202,-240.89252329,0.00049315,120]
[357134453,1743779439211,-1493.83,0.00049315,120]
[357134455,1743779439222,-169.86476197,0.00049315,120]
[357134457,1743779439231,-500.0,0.00049315,2]
[357134459,1743779439241,-500.0,0.00049315,10]
[357134461,1743779439250,-561.91302211,0.00049315,120]
[357134463,1743779439259,-500.0,0.00049315,120]
[357134465,1743779439268,-318.8039107,0.00049315,120]
[357134467,1743779439277,-500.0,0.00049315,120]
[357134469,1743779439287,-500.0,0.00049315,120]
[357134471,1743779439297,-694.96,0.00049315,120]
[357134473,1743779439306,-500.0,0.00049315,120]
[357134475,1743779439315,-500.0,0.00049315,120]
[357134477,1743779439325,-500.0,0.00049315,12]
[357134479,1743779439334,-500.0,0.00049315,120]
[357134481,1743779439343,-536.6,0.00049315,120]
[357134483,1743779439353,-500.0,0.00049315,120]
[357134485,1743779439364,-500.0,0.00049315,120]
[357134487,1743779439373,-500.0,0.00049315,30]
[357134489,1743779439383,-500.0,0.00049315,120]
[357134491,1743779439393,-500.0,0.00049315,120]
[357134493,1743779439403,-500.0,0.00049315,120]
[357134495,1743779439412,-500.0,0.00049315,120]
[357134497,1743779439421,-500.0,0.00049315,120]
[357134499,1743779439431,-500.0,0.00049315,120]
[357134501,1743779439440,-547.92,0.00049315,120]
[357134503,1743779439450,-500.0,0.00049315,7]
[357134505,1743779439459,-500.0,0.00049315,120]
[357134507,1743779439468,-500.0,0.00049315,120]
[357134509,1743779439478,-500.0,0.00049315,120]
[357134511,1743779439487,-384.65721904,0.00049315,120]
[357134513,1743779439496,-500.0,0.00049315,120]
[357134515,1743779439506,-574.48,0.00049315,120]
[357134517,1743779439515,-415.96166544,0.00049315,120]
[357134519,1743779439524,-500.0,0.00049315,120]
[357134521,1743779439534,-500.0,0.00049315,120]
[357134522,1743779439543,-500.0,0.00049315,120]
[357134524,1743779439552,-500.0,0.00049315,120]
[357134526,1743779439562,-610.56639746,0.00049315,120]
[357134528,1743779439571,-1861.73,0.00049315,7]
[357134530,1743779439581,-1143.12,0.00049315,120]
[357134532,1743779439590,-573.99,0.00049315,120]
[357134534,1743779439600,-500.0,0.00049315,120]
[357134536,1743779439614,-500.0,0.00049315,120]
[357134538,1743779439624,-401.9164877,0.00049315,120]
[357134540,1743779439633,-896.01,0.00049315,120]
[357134542,1743779439643,-500.0,0.00049315,120]
[357134544,1743779439653,-545.5143485,0.00049315,120]
[357134546,1743779439663,-500.0,0.00049315,120]
[357134548,1743779439672,-500.0,0.00049315,120]
[357134550,1743779439683,-1229.4,0.00049315,120]
[357134551,1743779439692,-501.07,0.00049315,120]
[357134566,1743779439848,-208.66123594,0.00049315,120]
[357134567,1743779439862,-500.0,0.00049315,120]
[357134569,1743779439871,-531.49,0.00049315,120]
[357134571,1743779439881,-500.0,0.00049315,120]
[357134573,1743779439890,-980.16,0.00049315,120]
[357134575,1743779439899,-500.0,0.00049315,120]
[357134576,1743779439908,-500.0,0.00049315,120]
[357134578,1743779439917,-500.0,0.00049315,120]
[357134580,1743779439928,-500.0,0.00049315,120]
[357134582,1743779439937,-500.0,0.00049315,120]
[357134584,1743779439946,-528.36,0.00049315,120]
[357134586,1743779439955,-3804.71,0.00049315,120]
[357134587,1743779439964,-178.07226051,0.00049315,120]
[357134589,1743779439974,-524.81894538,0.00049315,120]
[357134591,1743779439983,-500.0,0.00049315,120]
[357134593,1743779439992,-716.89,0.00049315,120]
[357134595,1743779440001,-305.56061959,0.00049315,120]
[357134597,1743779440011,-500.0,0.00049315,2]
[357134599,1743779440020,-500.0,0.00049315,120]
[357134601,1743779440031,-1368.1,0.00049315,10]
[357134602,1743779440042,-609.54692479,0.00049315,120]
[357134604,1743779440051,-500.0,0.00049315,120]
[357134606,1743779440062,-500.0,0.00049315,120]
[357134608,1743779440072,-500.0,0.00049315,2]
[357134610,1743779440082,-500.0,0.00049315,120]
[357134612,1743779440091,-593.91642581,0.00049315,120]
[357134614,1743779440101,-301.5294748,0.00049315,120]
[357134616,1743779440115,-500.0,0.00049315,120]
[357134618,1743779440124,-500.0,0.00049315,120]
[357134619,1743779440134,-500.0,0.00049315,30]
[357134621,1743779440143,-500.0,0.00049315,120]
[357134623,1743779440152,-1009.51,0.00049315,120]
[357134626,1743779440161,-500.0,0.00049315,7]
[357134627,1743779440170,-500.0,0.00049315,120]
[357134629,1743779440179,-2000.0,0.00049315,2]
[357134631,1743779440188,-500.0,0.00049315,120]
[357134633,1743779440197,-500.0,0.00049315,120]
[357134635,1743779440207,-851.22,0.00049315,120]
[357134637,1743779440217,-500.0,0.00049315,120]
[357134639,1743779440227,-159.24849884,0.00049315,120]
[357134641,1743779440236,-450.69512307,0.00049315,100]
[357134644,1743779440246,-958.31,0.00049315,30]
[357134647,1743779440256,-500.0,0.00049315,120]
[357134648,1743779440264,-360.68004748,0.00049315,120]
[357134650,1743779440274,-500.0,0.00049315,120]
[357134652,1743779440283,-500.0,0.00049315,120]
[357134654,1743779440292,-500.0,0.00049315,120]
[357134656,1743779440301,-500.0,0.00049315,120]
[357134658,1743779440310,-2026.75,0.00049315,120]
[357134659,1743779440320,-500.0,0.00049315,120]
[357134661,1743779440329,-645.86,0.00049315,120]
[357134663,1743779440338,-500.0,0.00049315,120]
[357134665,1743779440347,-397.9431176,0.00049315,2]
[357134667,1743779440360,-153.0,0.00049315,90]
[357134668,1743779440369,-153.0,0.00049315,90]
[357134670,1743779440378,-153.0,0.00049315,90]
[357134672,1743779440387,-153.0,0.00049315,90]
[357134674,1743779440395,-153.0,0.00049315,90]
[357134676,1743779440405,-153.0,0.00049315,90]
[357134677,1743779440415,-153.0,0.00049315,90]
[357134679,1743779440425,-153.0,0.00049315,90]
[357134681,1743779440434,-153.0,0.00049315,90]
[357134683,1743779440444,-153.0,0.00049315,90]
[357134685,1743779440454,-153.0,0.00049315,90]
[357134687,1743779440463,-153.0,0.00049315,90]
[357134689,1743779440472,-153.0,0.00049315,90]
[357134691,1743779440482,-153.0,0.00049315,90]
[357134694,1743779440491,-153.0,0.00049315,90]
[357134697,1743779440502,-153.0,0.00049315,90]
[357134699,1743779440511,-153.0,0.00049315,90]
[357134702,1743779440521,-153.0,0.00049315,90]
[357134705,1743779440530,-153.0,0.00049315,90]
[357134708,1743779440539,-153.0,0.00049315,90]
[357134710,1743779440548,-153.0,0.00049315,90]
[357134713,1743779440557,-153.0,0.00049315,90]
[357134716,1743779440566,-153.0,0.00049315,90]
[357134718,1743779440575,-153.0,0.00049315,90]
[357134720,1743779440584,-153.0,0.00049315,90]
[357134721,1743779440593,-153.0,0.00049315,90]
[357134723,1743779440603,-153.0,0.00049315,90]
[357134725,1743779440614,-153.0,0.00049315,90]
[357134727,1743779440624,-153.0,0.00049315,90]
[357134729,1743779440633,-153.0,0.00049315,90]
[357134731,1743779440642,-153.0,0.00049315,90]
[357134733,1743779440651,-153.0,0.00049315,90]
[357134735,1743779440660,-153.0,0.00049315,90]
[357134737,1743779440670,-153.0,0.00049315,90]
[357134738,1743779440682,-153.0,0.00049315,90]
[357134740,1743779440692,-153.0,0.00049315,90]
[357134742,1743779440701,-153.0,0.00049315,90]
[357134744,1743779440711,-153.0,0.00049315,90]
[357134746,1743779440724,-153.0,0.00049315,90]
[357134748,1743779440734,-153.0,0.00049315,90]
[357134750,1743779440743,-153.0,0.00049315,90]
[357134752,1743779440752,-153.0,0.00049315,90]
[357134754,1743779440761,-153.0,0.00049315,90]
[357134755,1743779440770,-153.0,0.00049315,90]
[357134757,1743779440780,-153.0,0.00049315,90]
[357134759,1743779440790,-153.0,0.00049315,90]
[357134761,1743779440799,-153.0,0.00049315,90]
[357134763,1743779440808,-153.0,0.00049315,90]
[357134765,1743779440817,-153.0,0.00049315,90]
[357134767,1743779440827,-153.0,0.00049315,90]
[357134769,1743779440836,-153.0,0.00049315,90]
[357134771,1743779440846,-153.0,0.00049315,90]
[357134773,1743779440857,-153.0,0.00049315,90]
[357134775,1743779440866,-153.0,0.00049315,90]
[357134776,1743779440876,-153.0,0.00049315,90]
[357134778,1743779440885,-153.0,0.00049315,90]
[357134780,1743779440894,-153.0,0.00049315,90]
[357134782,1743779440903,-153.0,0.00049315,90]
[357134784,1743779440912,-153.0,0.00049315,90]
[357134786,1743779440920,-153.0,0.00049315,90]
[357134788,1743779440929,-153.0,0.00049315,90]
[357134789,1743779440938,-153.0,0.00049315,90]
[357134791,1743779440947,-153.0,0.00049315,90]
[357134793,1743779440956,-153.0,0.00049315,90]
[357134795,1743779440965,-153.0,0.00049315,90]
[357134797,1743779440974,-153.0,0.00049315,90]
[357134799,1743779440983,-153.0,0.00049315,90]
[357134801,1743779440992,-153.0,0.00049315,90]
[357134803,1743779441002,-153.0,0.00049315,90]
[357134805,1743779441011,-153.0,0.00049315,90]
[357134806,1743779441020,-153.0,0.00049315,90]
[357134808,1743779441030,-153.0,0.00049315,90]
[357134810,1743779441039,-153.0,0.00049315,90]
[357134812,1743779441048,-153.0,0.00049315,90]
[357134814,1743779441057,-153.0,0.00049315,90]
[357134816,1743779441067,-153.0,0.00049315,90]
[357134818,1743779441076,-153.0,0.00049315,90]
[357134819,1743779441085,-153.0,0.00049315,90]
[357134821,1743779441094,-153.0,0.00049315,90]
[357134823,1743779441106,-153.0,0.00049315,90]
[357134825,1743779441117,-153.0,0.00049315,90]
[357134827,1743779441127,-153.0,0.00049315,90]
[357134829,1743779441137,-153.0,0.00049315,90]
[357134831,1743779441146,-153.0,0.00049315,90]
[357134833,1743779441155,-153.0,0.00049315,90]
[357134834,1743779441165,-153.0,0.00049315,90]
[357134836,1743779441175,-153.0,0.00049315,90]
[357134838,1743779441185,-153.0,0.00049315,90]
[357134840,1743779441195,-153.0,0.00049315,90]
[357134842,1743779441205,-153.0,0.00049315,90]
[357134844,1743779441215,-153.0,0.00049315,90]
[357134845,1743779441225,-1143.68567069,0.0004949,30]
[357134846,1743779441235,-1080.82341052,0.0004949,30]
[357134847,1743779441247,-170.18,0.000495,120]
[357134848,1743779441257,-168.28161387,0.00049544,15]
[357134849,1743779441267,-500.0,0.00049578,120]
[357134850,1743779441276,-988.89,0.00049589,120]
[357134851,1743779441286,-500.0,0.00049589,2]
[357134852,1743779441296,-500.0,0.00049589,2]
[357134853,1743779441305,-500.0,0.00049589,120]
[357134854,1743779441315,-500.0,0.00049589,120]
[357134855,1743779441324,-799.59,0.00049589,120]
[357134856,1743779441334,-500.0,0.00049589,120]
[357134857,1743779441344,-500.0,0.00049589,120]
[357134858,1743779441358,-500.0,0.00049589,120]
[357134859,1743779441368,-500.0,0.00049589,30]
[357134861,1743779441378,-175.67759026,0.00049589,120]
[357134863,1743779441387,-500.0,0.00049589,120]
[357134865,1743779441397,-500.0,0.00049589,120]
[357134866,1743779441406,-500.0,0.00049589,120]
[357134868,1743779441415,-500.0,0.00049589,120]
[357134870,1743779441425,-500.0,0.00049589,120]
[357134872,1743779441434,-500.0,0.00049589,120]
[357134874,1743779441444,-500.0,0.00049589,120]
[357134876,1743779441452,-302.63389832,0.00049589,120]
[357134878,1743779441462,-213.60649934,0.00049589,120]
[357134880,1743779441471,-642.63,0.00049589,120]
[357134882,1743779441480,-500.0,0.00049589,120]
[357134884,1743779441489,-703.36,0.00049589,120]
[357134886,1743779441499,-1493.83,0.00049589,120]
[357134888,1743779441508,-516.29535497,0.00049589,10]
[357134890,1743779441517,-500.0,0.00049589,120]
[357134892,1743779441526,-500.0,0.00049589,120]
[357134894,1743779441536,-694.96,0.00049589,120]
[357134896,1743779441545,-485.33539904,0.00049589,120]
[357134898,1743779441554,-500.0,0.00049589,120]
[357134900,1743779441564,-500.0,0.00049589,12]
[357134902,1743779441573,-500.0,0.00049589,120]
[357134904,1743779441582,-536.6,0.00049589,120]
[357134906,1743779441591,-500.0,0.00049589,120]
[357134908,1743779441601,-500.0,0.00049589,120]
[357134910,1743779441612,-500.0,0.00049589,30]
[357134912,1743779441621,-500.0,0.00049589,120]
[357134914,1743779441631,-500.0,0.00049589,120]
[357134916,1743779441640,-345.64259546,0.00049589,120]
[357134918,1743779441649,-500.0,0.00049589,120]
[357134920,1743779441658,-500.0,0.00049589,120]
[357134922,1743779441668,-547.92,0.00049589,120]
[357134924,1743779441677,-500.0,0.00049589,7]
[357134926,1743779441687,-500.0,0.00049589,120]
[357134928,1743779441696,-500.0,0.00049589,120]
[357134930,1743779441708,-500.0,0.00049589,120]
[357134932,1743779441717,-574.48,0.00049589,120]
[357134934,1743779441727,-500.0,0.00049589,120]
[357134936,1743779441737,-500.0,0.00049589,120]
[357134938,1743779441746,-500.0,0.00049589,120]
[357134940,1743779441755,-500.0,0.00049589,120]
[357134941,1743779441764,-1861.73,0.00049589,7]
[357134943,1743779441773,-1143.12,0.00049589,120]
[357134945,1743779441783,-573.99,0.00049589,120]
[357134946,1743779441792,-896.01,0.00049589,120]
[357134947,1743779441801,-500.0,0.00049589,120]
[357134948,1743779441810,-500.0,0.00049589,120]
[357134949,1743779441819,-500.0,0.00049589,120]
[357134950,1743779441829,-1229.4,0.00049589,120]
[357134951,1743779441838,-501.07,0.00049589,120]
[357134952,1743779441847,-500.0,0.00049589,120]
[357134953,1743779441858,-531.49,0.00049589,120]
[357134954,1743779441867,-980.16,0.00049589,120]
[357134955,1743779441877,-500.0,0.00049589,120]
[357134956,1743779441886,-500.0,0.00049589,120]
[357134957,1743779441895,-500.0,0.00049589,120]
[357134958,1743779441905,-500.0,0.00049589,120]
[357134959,1743779441914,-528.36,0.00049589,120]
[357134960,1743779441923,-3804.71,0.00049589,120]
[357134961,1743779441932,-500.0,0.00049589,120]
[357134962,1743779441942,-716.89,0.00049589,120]
[357134963,1743779441951,-500.0,0.00049589,2]
[357134964,1743779441960,-500.0,0.00049589,120]
[357134965,1743779441970,-1368.1,0.00049589,10]
[357134966,1743779441980,-500.0,0.00049589,2]
[357134967,1743779441990,-500.0,0.00049589,120]
[357134968,1743779442000,-500.0,0.00049589,120]
[357134969,1743779442010,-500.0,0.00049589,30]
[357134970,1743779442019,-500.0,0.00049589,120]
[357134971,1743779442028,-1009.51,0.00049589,120]
[357134972,1743779442038,-500.0,0.00049589,120]
[357134973,1743779442048,-2000.0,0.00049589,2]
[357134974,1743779442058,-500.0,0.00049589,120]
[357134975,1743779442067,-391.5353458,0.00049589,120]
[357134976,1743779442076,-851.22,0.00049589,120]
[357134977,1743779442086,-500.0,0.00049589,120]
[357134978,1743779442096,-958.31,0.00049589,30]
[357134979,1743779442109,-500.0,0.00049589,120]
[357134980,1743779442119,-500.0,0.00049589,120]
[357134981,1743779442129,-500.0,0.00049589,120]
[357134982,1743779442140,-500.0,0.00049589,120]
[357134983,1743779442150,-500.0,0.00049589,120]
[357134984,1743779442160,-2026.75,0.00049589,120]
[357134985,1743779442169,-500.0,0.00049589,120]
[357134986,1743779442179,-500.0,0.00049589,120]
[357134987,1743779442189,-645.86,0.00049589,120]
[357134988,1743779442198,-592.29137335,0.00049646,10]
[357134989,1743779442208,-175.0,0.00049663,2]
[357134990,1743779442218,-329.33400687,0.00049741,10]
[357134991,1743779442228,-664.79,0.00049861,120]
[357134992,1743779442238,-500.0,0.00049861,7]
[357134993,1743779442248,-500.0,0.00049861,120]
[357134994,1743779442258,-500.0,0.00049861,120]
[357134995,1743779442267,-2256.37,0.00049861,2]
[357134996,1743779442277,-500.0,0.00049861,120]
[357134997,1743779442287,-500.0,0.00049861,120]
[357134998,1743779442297,-472.3415014,0.00049861,120]
[357134999,1743779442306,-424.27659785,0.00049861,120]
[357135000,1743779442316,-500.0,0.00049861,120]
[357135001,1743779442326,-500.0,0.00049861,120]
[357135002,1743779442337,-500.0,0.00049861,120]
[357135003,1743779442348,-500.0,0.00049861,120]
[357135004,1743779442361,-579.84,0.00049861,120]
[357135005,1743779442371,-988.89,0.00049863,120]
[357135006,1743779442380,-249.81893474,0.00049863,2]
[357135007,1743779442390,-500.0,0.00049863,2]
[357135008,1743779442399,-500.0,0.00049863,120]
[357135009,1743779442409,-500.0,0.00049863,120]
[357135010,1743779442419,-799.59,0.00049863,120]
[357135011,1743779442429,-500.0,0.00049863,120]
[357135012,1743779442439,-500.0,0.00049863,120]
[357135013,1743779442449,-500.0,0.00049863,120]
[357135014,1743779442459,-500.0,0.00049863,30]
[357135015,1743779442469,-500.0,0.00049863,120]
[357135016,1743779442478,-500.0,0.00049863,120]
[357135017,1743779442488,-500.0,0.00049863,120]
[357135018,1743779442498,-500.0,0.00049863,120]
[357135019,1743779442508,-500.0,0.00049863,120]
[357135020,1743779442518,-500.0,0.00049863,120]
[357135021,1743779442528,-500.0,0.00049863,120]
[357135022,1743779442538,-642.63,0.00049863,120]
[357135023,1743779442548,-500.0,0.00049863,120]
[357135024,1743779442557,-703.36,0.00049863,120]
[357135025,1743779442567,-1493.83,0.00049863,120]
[357135026,1743779442577,-500.0,0.00049863,120]
[357135027,1743779442586,-500.0,0.00049863,120]
[357135028,1743779442596,-694.96,0.00049863,120]
[357135029,1743779442609,-500.0,0.00049863,120]
[357135030,1743779442619,-500.0,0.00049863,12]
[357135031,1743779442629,-500.0,0.00049863,120]
[357135032,1743779442639,-536.6,0.00049863,120]
[357135033,1743779442649,-500.0,0.00049863,120]
[357135034,1743779442658,-500.0,0.00049863,120]
[357135035,1743779442668,-500.0,0.00049863,30]
[357135036,1743779442678,-227.40613226,0.00049863,120]
[357135037,1743779442691,-180.20171913,0.00049863,120]
[357135038,1743779442701,-500.0,0.00049863,120]
[357135039,1743779442711,-500.0,0.00049863,120]
[357135040,1743779442721,-547.92,0.00049863,120]
[357135041,1743779442730,-500.0,0.00049863,7]
[357135042,1743779442740,-500.0,0.00049863,120]
[357135043,1743779442750,-500.0,0.00049863,120]
[357135044,1743779442760,-500.0,0.00049863,120]
[357135045,1743779442770,-574.48,0.00049863,120]
[357135046,1743779442780,-500.0,0.00049863,120]
[357135047,1743779442789,-500.0,0.00049863,120]
[357135048,1743779442799,-500.0,0.00049863,120]
[357135049,1743779442808,-500.0,0.00049863,120]
[357135050,1743779442817,-1861.73,0.00049863,7]
[357135051,1743779442827,-1143.12,0.00049863,120]
[357135052,1743779442836,-573.99,0.00049863,120]
[357135053,1743779442958,-896.01,0.00049863,120]
[357135054,1743779442969,-500.0,0.00049863,120]
[357135055,1743779442979,-500.0,0.00049863,120]
[357135056,1743779442989,-500.0,0.00049863,120]
[357135057,1743779442999,-1229.4,0.00049863,120]
[357135058,1743779443008,-501.07,0.00049863,120]
[357135059,1743779443018,-500.0,0.00049863,120]
[357135060,1743779443028,-531.49,0.00049863,120]
[357135061,1743779443037,-980.16,0.00049863,120]
[357135062,1743779443047,-500.0,0.00049863,120]
[357135063,1743779443057,-500.0,0.00049863,120]
[357135064,1743779443067,-500.0,0.00049863,120]
[357135065,1743779443076,-500.0,0.00049863,120]
[357135066,1743779443085,-528.36,0.00049863,120]
[357135067,1743779443095,-3804.71,0.00049863,120]
[357135068,1743779443104,-500.0,0.00049863,120]
[357135069,1743779443116,-716.89,0.00049863,120]
[357135071,1743779443125,-500.0,0.00049863,2]
[357135073,1743779443135,-500.0,0.00049863,120]
[357135074,1743779443145,-1368.1,0.00049863,10]
[357135075,1743779443154,-615.26116738,0.00049863,2]
[357135076,1743779443164,-500.0,0.00049863,120]
[357135077,1743779443173,-500.0,0.00049863,120]
[357135078,1743779443183,-500.0,0.00049863,30]
[357135079,1743779443193,-500.0,0.00049863,120]
[357135080,1743779443203,-1009.51,0.00049863,120]
[357135081,1743779443213,-500.0,0.00049863,120]
[357135082,1743779443223,-2000.0,0.00049863,2]
[357135083,1743779443232,-347.72600281,0.00049863,120]